bitfinex-derivatives/quotes_BTCF0:USTF0_20240907
["timestamp","ask_amount","ask_price","bid_price","bid_amount"]
[1725674624753,0.09298,53788.0,53787.0,0.07920207]
[1725674625351,0.09298,53788.0,53787.0,0.03290207]
[1725674625550,0.092985,53785.0,53784.0,0.092986]
[1725674625761,0.192985,53785.0,53784.0,0.12631672]
[1725674626365,0.192985,53785.0,53784.0,0.03333072]
[1725674626555,0.092991,53783.0,53781.0,0.0457]
[1725674627150,0.092991,53783.0,53782.0,0.092991]
[1725674627956,0.2040057,53808.0,53781.0,0.17941918]
[1725674628163,0.1,53795.0,53789.0,0.1]
[1725674628347,0.1375,53804.0,53787.0,0.092981]
[1725674628348,0.192975,53792.0,53787.0,0.092981]
[1725674628553,0.092976,53791.0,53787.0,0.092981]
[1725674629356,0.092976,53791.0,53787.0,0.14850795]
[1725674629958,0.092976,53791.0,53787.0,0.05552695]
[1725674630156,0.1,53792.0,53790.0,0.092977]
[1725674630560,0.192973,53792.0,53790.0,0.092977]
[1725674630951,0.192973,53792.0,53790.0,0.14850395]
[1725674630952,0.092975,53791.0,53790.0,0.14850395]
[1725674632968,0.1,53792.0,53791.0,0.092975]
[1725674634269,0.1,53792.0,53791.0,0.14850195]
[1725674637362,0.1,53792.0,53791.0,0.14857709]
[1725674637868,0.1,53792.0,53791.0,0.092975]
[1725674639563,0.1,53792.0,53788.0,0.14858209]
[1725674639769,0.1,53789.0,53788.0,0.14858209]
[1725674640568,0.1,53789.0,53788.0,0.18137087]
[1725674641159,0.1,53789.0,53788.0,0.12576878]
[1725674641768,0.192979,53789.0,53788.0,0.12576878]
[1725674643673,0.192979,53789.0,53788.0,0.03278878]
[1725674643972,0.092981,53788.0,53786.0,0.07427407]
[1725674644172,0.092981,53788.0,53787.0,0.07427407]
[1725674644559,0.092982,53787.0,53786.0,0.03371642]
[1725674644763,0.092984,53786.0,53785.0,0.07427407]
[1725674644971,0.192984,53786.0,53785.0,0.07427407]
[1725674645870,0.192984,53786.0,53785.0,0.16725907]
[1725674646575,0.192984,53786.0,53785.0,0.201374]
[1725674647379,0.193984,53786.0,53785.0,0.201374]
[1725674648084,0.193984,53786.0,53785.0,0.12709993]
[1725674648775,0.22989928,53786.0,53785.0,0.12709993]
[1725674649575,0.03691528,53786.0,53785.0,0.12709993]
[1725674651073,0.03691528,53786.0,53785.0,0.22709993]
[1725674651866,0.001,53786.0,53785.0,0.22709993]
[1725674652773,0.001,53786.0,53785.0,1.38485993]
[1725674652774,0.03691251,53786.0,53785.0,1.38485993]
[1725674652985,0.11214517,53786.0,53785.0,1.38485993]
[1725674653282,0.001,53786.0,53785.0,1.38485993]
[1725674654281,0.11214517,53786.0,53785.0,1.38485993]
[1725674655176,0.092969,53795.0,53785.0,1.38485993]
[1725674655177,0.11113495,53789.0,53788.0,0.09298]
[1725674655376,0.11113495,53792.0,53791.0,0.092975]
[1725674655576,0.11113495,53792.0,53791.0,0.192975]
[1725674655784,0.11113495,53792.0,53791.0,1.350695]
[1725674655979,0.11113495,53793.0,53792.0,0.092973]
[1725674656168,0.11113495,53795.0,53794.0,0.09297]
[1725674656369,0.11113495,53797.0,53794.0,0.1]
[1725674656582,0.11113495,53797.0,53796.0,0.1]
[1725674656885,0.4265,53806.0,53802.0,0.092954]
[1725674657075,0.4265,53806.0,53803.0,0.14863651]
[1725674657076,0.1,53806.0,53803.0,0.14863651]
[1725674657386,0.07301686,53805.0,53803.0,0.092954]
[1725674657684,0.092948,53807.0,53804.0,0.1]
[1725674657879,0.092948,53807.0,53805.0,0.05565822]
[1725674658190,0.012,53806.0,53804.0,0.15565822]
[1725674658388,0.012,53806.0,53805.0,0.09295]
[1725674659279,0.012,53806.0,53805.0,0.14854864]
[1725674659576,0.012,53806.0,53805.0,0.09295]
[1725674660280,0.140141,53811.0,53805.0,0.09295]
[1725674660487,0.014,53807.0,53805.0,0.09295]
[1725674660978,0.014,53806.0,53805.0,0.09295]
[1725674661586,0.014,53807.0,53805.0,0.09295]
[1725674662287,0.014,53806.0,53805.0,0.09295]
[1725674663496,0.014,53806.0,53805.0,0.1268095]
[1725674663674,0.141242,53810.0,53805.0,0.1268095]
[1725674663877,0.014,53807.0,53805.0,0.1268095]
[1725674664077,0.08141204,53806.0,53805.0,0.1268095]
[1725674664280,0.04990011,53806.0,53805.0,0.1268095]
[1725674664984,0.14323298,53806.0,53805.0,0.1268095]
[1725674665483,0.12923298,53806.0,53805.0,0.1268095]
[1725674666288,0.16513309,53806.0,53805.0,0.1268095]
[1725674666586,0.08141235,53806.0,53805.0,0.1268095]
[1725674666979,0.09541235,53806.0,53805.0,0.1268095]
[1725674671788,0.09541519,53806.0,53805.0,0.1268095]
[1725674671985,0.014,53806.0,53805.0,0.1268095]
[1725674678896,0.04990268,53806.0,53805.0,0.1268095]
[1725674681499,0.17909538,53806.0,53805.0,0.1268095]
[1725674681702,0.17909465,53806.0,53805.0,0.1268095]
[1725674682991,0.04990195,53806.0,53805.0,0.1268095]
[1725674684097,0.014,53806.0,53805.0,0.1268095]
[1725674684299,0.24349064,53806.0,53805.0,0.1268095]
[1725674685299,0.24375053,53806.0,53805.0,0.1268095]
[1725674686392,0.014,53806.0,53805.0,0.1268095]
[1725674687097,0.106949,53806.0,53805.0,0.1268095]
[1725674690094,0.106949,53806.0,53805.0,0.2268095]
[1725674691205,0.014,53806.0,53805.0,0.2268095]
[1725674691397,0.014,53806.0,53805.0,0.36844625]
[1725674691596,0.092931,53817.0,53814.0,0.092935]
[1725674691904,0.092931,53817.0,53816.0,0.15576627]
[1725674692299,0.185726,53820.0,53817.0,0.092929]
[1725674692500,0.092926,53820.0,53819.0,0.1]
[1725674693698,0.105926,53820.0,53819.0,0.101]
[1725674694508,0.17790107,53820.0,53819.0,0.09090001]
[1725674695813,0.105926,53820.0,53819.0,0.09090001]
[1725674697816,0.092926,53820.0,53819.0,0.09090001]
[1725674699313,0.103926,53820.0,53819.0,0.09090001]
[1725674700408,0.17221066,53820.0,53819.0,0.09090001]
[1725674700610,0.103926,53820.0,53819.0,0.12470781]
[1725674700915,0.092926,53820.0,53819.0,0.12370781]
[1725674701117,0.102926,53820.0,53819.0,0.12470781]
[1725674701516,0.26951405,53820.0,53819.0,0.001]
[1725674701718,0.2413623,53820.0,53819.0,0.001]
[1725674701919,0.40795035,53820.0,53819.0,0.001]
[1725674702424,0.40795272,53820.0,53819.0,0.001]
[1725674702625,0.24136467,53820.0,53819.0,0.001]
[1725674702921,0.40795272,53820.0,53819.0,0.001]
[1725674703315,0.24136467,53820.0,53819.0,0.001]
[1725674703720,0.24136467,53820.0,53819.0,0.193927]
[1725674703721,0.21699074,53820.0,53819.0,0.193927]
[1725674703926,0.38349398,53820.0,53819.0,0.193927]
[1725674704225,0.21699074,53820.0,53819.0,0.193927]
[1725674705525,0.15995265,53820.0,53819.0,0.193927]
[1725674705925,0.30778689,53820.0,53819.0,0.193927]
[1725674706129,0.23923482,53820.0,53819.0,0.193927]
[1725674707936,0.09140058,53820.0,53819.0,0.093927]
[1725674708323,0.14843646,53820.0,53819.0,0.093927]
[1725674709626,0.102925,53820.0,53819.0,0.093927]
[1725674711732,0.102925,53820.0,53819.0,0.001]
[1725674711939,1.35325,53820.0,53819.0,0.001]
[1725674712133,1.32757456,53820.0,53819.0,0.00090001]
[1725674713633,0.72757456,53820.0,53819.0,0.00090001]
[1725674714234,0.17017456,53820.0,53819.0,0.10090001]
[1725674714932,0.17017456,53820.0,53819.0,0.00090001]
[1725674716626,0.30861964,53820.0,53819.0,0.00090001]
[1725674717437,0.24137008,53820.0,53819.0,0.00090001]
[1725674717827,0.40776016,53820.0,53819.0,0.00090001]
[1725674718936,0.47482159,53820.0,53819.0,0.00090001]
[1725674719442,0.30835931,53820.0,53819.0,0.00090001]
[1725674722136,0.092928,53818.0,53817.0,0.10251142]
[1725674722334,0.15991723,53818.0,53817.0,0.10251142]
[1725674722637,0.29835961,53818.0,53817.0,0.10251142]
[1725674723644,0.30835961,53818.0,53817.0,0.10351142]
[1725674724141,0.47496878,53818.0,53817.0,0.10351142]
[1725674724534,0.33652587,53818.0,53817.0,0.10351142]
[1725674724742,0.16991723,53818.0,53817.0,0.10351142]
[1725674725342,0.15991723,53818.0,53817.0,0.10251142]
[1725674725536,0.17091723,53818.0,53817.0,0.15920955]
[1725674725847,0.17091723,53818.0,53817.0,0.10351142]
[1725674727149,0.103928,53818.0,53817.0,0.10351142]
[1725674729543,0.092928,53818.0,53817.0,0.10251142]
[1725674729748,0.103928,53818.0,53817.0,0.10351142]
[1725674731550,0.18532256,53818.0,53817.0,0.10351142]
[1725674733247,0.24235999,53818.0,53817.0,0.10351142]
[1725674733851,0.40896863,53818.0,53817.0,0.10351142]
[1725674734242,0.47283365,53818.0,53817.0,0.10351142]
[1725674734444,0.24235999,53818.0,53817.0,0.10351142]
[1725674734643,0.30622486,53818.0,53817.0,0.10351142]
[1725674735348,0.21329686,53818.0,53817.0,0.10351142]
[1725674735554,0.09239456,53818.0,53817.0,0.10351142]
[1725674737454,0.1295663,53821.0,53820.0,0.092925]
[1725674737751,0.03588688,53821.0,53819.0,0.1]
[1725674738049,0.1295663,53826.0,53825.0,0.092916]
[1725674738255,0.16545139,53826.0,53825.0,0.092916]
[1725674738749,0.03588509,53826.0,53825.0,0.092916]
[1725674739546,0.1295663,53828.0,53827.0,0.092913]
[1725674739751,0.092903,53833.0,53827.0,0.1]
[1725674739953,0.092903,53833.0,53831.0,0.1]
[1725674740151,0.092897,53836.0,53831.0,0.192905]
[1725674740346,0.06251537,53835.0,53834.0,0.1]
[1725674740854,0.092897,53836.0,53834.0,0.1]
[1725674741844,0.0929,53835.0,53831.0,0.192905]
[1725674742350,0.06256666,53834.0,53829.0,0.1]
[1725674742547,0.15547066,53833.0,53829.0,0.192909]
[1725674742849,0.06156666,53832.0,53829.0,0.192909]
[1725674743046,0.06156666,53832.0,53830.0,0.092908]
[1725674743355,0.092904,53833.0,53831.0,0.001]
[1725674745456,0.092904,53833.0,53830.0,0.092908]
[1725674746156,0.092904,53833.0,53831.0,0.001]
[1725674746757,0.13839813,53832.0,53830.0,0.08451721]
[1725674747056,0.13839813,53831.0,53830.0,0.08451721]
[1725674747357,0.13839813,53831.0,53830.0,0.08551721]
[1725674747358,0.08137675,53831.0,53830.0,0.08551721]
[1725674748746,0.13839813,53831.0,53830.0,0.08451721]
[1725674749063,0.13739813,53831.0,53830.0,0.08451721]
[1725674749449,0.13739813,53831.0,53830.0,0.08551721]
[1725674753655,0.092905,53832.0,53830.0,0.08551721]
[1725674754555,0.092906,53831.0,53830.0,0.001]
[1725674754953,0.185812,53831.0,53830.0,0.001]
[1725674755756,0.25059367,53831.0,53830.0,0.001]
[1725674755962,0.092913,53827.0,53826.0,0.03069769]
[1725674756155,0.092915,53826.0,53824.0,0.092917]
[1725674756858,0.091915,53826.0,53824.0,0.092917]
[1725674757358,0.093915,53826.0,53824.0,0.093917]
[1725674758163,0.093915,53826.0,53824.0,0.12543323]
[1725674759462,0.092916,53825.0,53824.0,0.12543323]
[1725674759849,0.092916,53825.0,53824.0,0.12443323]
[1725674760164,0.092916,53825.0,53824.0,0.12543323]
[1725674761663,0.003,53826.0,53825.0,0.092916]
[1725674762754,0.09291,53829.0,53826.0,0.092913]
[1725674762955,0.09291,53829.0,53828.0,0.1]
[1725674763462,0.092907,53831.0,53828.0,0.192911]
[1725674764059,0.004,53829.0,53828.0,0.193911]
[1725674764470,0.0686619,53829.0,53828.0,0.193911]
[1725674764652,0.0646619,53829.0,53828.0,0.193911]
[1725674765656,0.1575709,53829.0,53828.0,0.001]
[1725674765858,0.2504799,53829.0,53828.0,0.001]
[1725674766257,0.091916,53825.0,53824.0,0.08713932]
[1725674766466,0.091916,53825.0,53824.0,0.05562309]
[1725674766667,0.2568201,53825.0,53824.0,0.05562309]
[1725674766867,0.092918,53824.0,53818.0,0.05570764]
[1725674767164,0.092929,53818.0,53816.0,0.14863864]
[1725674767359,0.0639041,53817.0,53816.0,0.14863864]
[1725674767554,0.0639041,53817.0,53816.0,0.092931]
[1725674767962,0.0629041,53817.0,53816.0,0.092931]
[1725674768671,0.20133971,53817.0,53816.0,0.092931]
[1725674769366,0.40441778,53817.0,53816.0,0.092931]
[1725674769672,0.20133971,53817.0,53816.0,0.092931]
[1725674769860,0.20733971,53817.0,53816.0,0.093931]
[1725674770659,0.20733971,53817.0,53816.0,0.12537829]
[1725674774070,0.37351254,53817.0,53816.0,0.12537829]
[1725674774470,0.31060844,53817.0,53816.0,0.12537829]
[1725674774964,0.31060844,53817.0,53816.0,0.17507829]
[1725674775468,0.08739878,53817.0,53816.0,0.17507829]
[1725674775863,0.0873914,53817.0,53816.0,0.17507829]
[1725674776666,0.006,53817.0,53816.0,0.24943332]
[1725674778273,0.006,53817.0,53816.0,0.17507829]
[1725674780571,0.006,53817.0,53816.0,0.27507829]
[1725674780777,0.006,53817.0,53816.0,0.83251829]
[1725674781473,0.141,53830.0,53825.0,0.092915]
[1725674781665,0.141,53830.0,53825.0,0.05564791]
[1725674781666,0.092912,53828.0,53825.0,0.05564791]
[1725674781868,0.092912,53828.0,53826.0,0.05564791]
[1725674782577,0.0468,53830.0,53828.0,0.09291]
[1725674783077,0.139708,53830.0,53828.0,0.09291]
[1725674784180,0.145708,53830.0,53828.0,0.09391]
[1725674784681,0.092909,53829.0,53828.0,0.001]
[1725674786078,0.092909,53829.0,53828.0,0.03153038]
[1725674786272,0.092909,53829.0,53828.0,0.001]
[1725674787372,0.15791995,53829.0,53828.0,0.001]
[1725674789585,0.15791995,53829.0,53828.0,0.193911]
[1725674789787,0.092904,53833.0,53830.0,0.092907]
[1725674789980,0.06526568,53832.0,53830.0,0.092907]
[1725674790383,0.0929,53835.0,53830.0,0.092907]
[1725674790576,0.06526715,53834.0,53830.0,0.092907]
[1725674790883,0.092906,53831.0,53830.0,0.092907]
[1725674791874,0.092906,53831.0,53830.0,0.08361631]
[1725674791875,0.23130402,53831.0,53830.0,0.08361631]
[1725674792382,0.23130402,53831.0,53830.0,0.08461631]
[1725674792883,0.23230402,53831.0,53830.0,0.08461631]
[1725674793989,0.29753407,53831.0,53830.0,0.001]
[1725674795583,0.29653407,53831.0,53828.0,0.1]
[1725674795782,0.20262807,53830.0,53828.0,0.192911]
[1725674795980,0.06423005,53829.0,53828.0,0.192911]
[1725674796177,0.14560724,53829.0,53828.0,0.192911]
[1725674796380,0.20162894,53829.0,53828.0,0.192911]
[1725674797084,0.20162894,53829.0,53828.0,0.193911]
[1725674798789,0.06323005,53829.0,53828.0,0.193911]
[1725674798991,0.06523005,53829.0,53828.0,0.193911]
[1725674800495,0.06523005,53829.0,53828.0,0.26808743]
[1725674801788,0.092885,53844.0,53828.0,1.25832]
[1725674801992,0.092885,53844.0,53841.0,0.1]
[1725674802190,0.092885,53844.0,53841.0,0.192888]
[1725674803092,0.095885,53844.0,53841.0,0.193888]
[1725674804606,0.003,53844.0,53843.0,0.092885]
[1725674805505,0.003,53844.0,53843.0,0.16696167]
[1725674806011,0.0953,53854.0,53848.0,0.092876]
[1725674806205,0.0953,53854.0,53853.0,0.1]
[1725674806895,0.30025741,53854.0,53853.0,0.07071262]
[1725674807305,0.54022354,53854.0,53853.0,0.07171262]
[1725674807511,0.47361717,53854.0,53853.0,0.07171262]
[1725674807704,0.23365104,53854.0,53853.0,0.07171262]
[1725674807900,0.13835104,53854.0,53853.0,0.191]
[1725674810007,0.13835104,53854.0,53853.0,0.283868]
[1725674810506,0.13835104,53854.0,53853.0,0.191]
[1725674810700,0.23121704,53854.0,53853.0,0.001]
[1725674811905,0.28655584,53854.0,53853.0,0.001]
[1725674813909,0.1482048,53854.0,53853.0,0.001]
[1725674816916,0.092866,53854.0,53853.0,0.001]
[1725674817610,0.12440643,53854.0,53853.0,0.001]
[1725674822019,0.28923988,53854.0,53853.0,0.001]
[1725674822616,0.16027835,53854.0,53853.0,0.001]
[1725674823623,0.20575454,53854.0,53853.0,0.001]
[1725674824415,0.20575462,53854.0,53853.0,0.001]
[1725674825021,0.17421419,53854.0,53853.0,0.001]
[1725674825518,0.3215988,53854.0,53853.0,0.001]
[1725674827320,0.09287,53852.0,53851.0,0.19]
[1725674827517,0.17321819,53852.0,53851.0,0.19]
[1725674829016,0.09087,53852.0,53851.0,0.19]
[1725674829621,0.09087,53852.0,53851.0,0.191]
[1725674830015,0.09087,53852.0,53851.0,0.101]
[1725674831412,0.14581534,53852.0,53851.0,0.101]
[1725674832926,0.09087,53852.0,53851.0,0.101]
[1725674833325,0.14668688,53852.0,53851.0,0.15665496]
[1725674833628,0.09087,53852.0,53851.0,0.17507667]
[1725674833928,0.14668785,53852.0,53851.0,0.193871]
[1725674834227,0.14768785,53852.0,53851.0,0.193871]
[1725674835924,0.24055785,53852.0,53851.0,0.07530548]
[1725674836226,0.24055785,53852.0,53851.0,0.001]
[1725674837023,0.28603901,53852.0,53851.0,0.101]
[1725674837430,0.28603901,53852.0,53851.0,0.1328492]
[1725674839231,0.23021885,53852.0,53851.0,0.1328492]
[1725674841333,0.23021885,53852.0,53851.0,0.0328492]
[1725674842330,0.22921885,53852.0,53851.0,0.0318492]
[1725674842636,0.22921885,53852.0,53851.0,0.001]
[1725674843034,0.091871,53851.0,53850.0,0.092873]
[1725674843329,0.23021985,53851.0,53850.0,0.092873]
[1725674843536,0.23021985,53851.0,53850.0,0.12453327]
[1725674843728,0.22921985,53851.0,53850.0,0.12453327]
[1725674844038,0.090871,53851.0,53850.0,0.12453327]
[1725674844436,0.090871,53851.0,53850.0,0.12553327]
[1725674846128,0.091871,53851.0,53850.0,0.12553327]
[1725674846329,0.1485021,53851.0,53850.0,0.12553327]
[1725674846736,0.1475021,53851.0,53850.0,0.12453327]
[1725674846938,0.1495021,53851.0,53850.0,0.12553327]
[1725674849538,0.0586311,53851.0,53850.0,0.12553327]
[1725674850038,0.002,53851.0,53850.0,0.12553327]
[1725674853839,0.092864,53856.0,53854.0,0.092865]
[1725674854039,0.092864,53856.0,53855.0,0.1]
[1725674854448,0.14926483,53856.0,53855.0,0.1]
[1725674854640,0.11120266,53857.0,53855.0,0.1]
[1725674854842,0.12978744,53866.0,53855.0,0.092865]
[1725674854843,0.05641026,53856.0,53855.0,0.092865]
[1725674855150,0.05641026,53856.0,53855.0,0.192865]
[1725674856256,0.11120266,53861.0,53855.0,1.349905]
[1725674856549,0.092847,53866.0,53863.0,0.092851]
[1725674856550,0.11120266,53864.0,53863.0,0.092851]
[1725674856744,0.11120266,53865.0,53864.0,0.092849]
[1725674856944,0.20404966,53866.0,53864.0,0.092849]
[1725674857140,0.092847,53866.0,53864.0,0.092849]
[1725674857341,0.092847,53865.0,53864.0,0.092849]
[1725674858937,0.23115975,53865.0,53864.0,0.092849]
[1725674859339,0.23115975,53865.0,53864.0,0.093849]
[1725674859846,0.23215975,53865.0,53864.0,0.093849]
[1725674860649,0.23215975,53865.0,53864.0,0.08446411]
[1725674863250,0.23215975,53865.0,53864.0,0.03860862]
[1725674863752,0.23215975,53865.0,53864.0,0.07019224]
[1725674864350,0.37716503,53865.0,53864.0,0.03258362]
[1725674864544,0.37716516,53865.0,53864.0,0.03258362]
[1725674864744,0.42236516,53865.0,53864.0,0.03258362]
[1725674865557,0.42236516,53865.0,53864.0,0.12543262]
[1725674866259,0.4669207,53865.0,53864.0,0.12543262]
[1725674867060,0.32860254,53865.0,53864.0,0.12543262]
[1725674867258,0.22860254,53865.0,53864.0,0.12543262]
[1725674869563,0.184047,53865.0,53864.0,0.12543262]
[1725674876765,0.185047,53865.0,53864.0,0.12643262]
[1725674880356,0.184047,53865.0,53864.0,0.12543262]
[1725674882074,0.32136345,53865.0,53864.0,0.12443262]
[1725674882265,0.32236345,53865.0,53864.0,0.12543262]
[1725674884670,0.3655917,53865.0,53864.0,0.12543262]
[1725674886565,0.3203917,53865.0,53864.0,0.12543262]
[1725674888165,0.18207525,53865.0,53864.0,0.12543262]
[1725674888361,0.32039203,53865.0,53864.0,0.12543262]
[1725674889076,0.2747374,53865.0,53864.0,0.12543262]
[1725674889467,0.18207525,53865.0,53864.0,0.12543262]
[1725674889770,0.27473549,53865.0,53864.0,0.12543262]
[1725674890367,0.27473549,53865.0,53864.0,0.19973054]
[1725674890573,0.18207525,53865.0,53864.0,0.19973054]
[1725674891168,0.27473549,53865.0,53864.0,0.19973054]
[1725674891766,0.23150724,53865.0,53864.0,0.19973054]
[1725674891978,0.23150724,53865.0,53864.0,0.12543262]
[1725674893869,0.23150724,53865.0,53864.0,0.19973054]
[1725674894069,0.18650724,53865.0,53864.0,0.19973054]
[1725674895080,0.093847,53865.0,53864.0,0.1997319]
[1725674895281,0.093847,53865.0,53864.0,0.19973098]
[1725674895575,0.093847,53865.0,53864.0,0.12543262]
[1725674896775,0.093847,53865.0,53864.0,0.19972612]
[1725674897074,0.23215687,53865.0,53864.0,0.12543262]
[1725674898374,0.23215715,53865.0,53864.0,0.12543262]
[1725674898778,0.27482106,53865.0,53864.0,0.12443262]
[1725674899078,0.27482106,53865.0,53864.0,0.12543262]
[1725674903284,0.27482386,53865.0,53864.0,0.12543262]
[1725674903879,0.35222599,53865.0,53864.0,0.12543262]
[1725674904175,0.21391304,53865.0,53864.0,0.12543262]
[1725674904374,0.21391304,53865.0,53864.0,0.06464072]
[1725674905185,0.21391304,53865.0,53864.0,0.13893361]
[1725674905385,0.21391304,53865.0,53864.0,0.06464072]
[1725674905686,0.27404087,53865.0,53864.0,0.06464072]
[1725674906693,0.19663874,53865.0,53864.0,0.06464072]
[1725674906898,0.19663874,53865.0,53864.0,0.0952724]
[1725674912199,0.5387716,53865.0,53864.0,0.0952724]
[1725674913297,0.40154204,53865.0,53864.0,0.0952724]
[1725674913491,0.33495335,53865.0,53864.0,0.0952724]
[1725674915788,0.538746,53865.0,53864.0,0.0952724]
[1725674916298,0.47861999,53865.0,53864.0,0.0952724]
[1725674916895,0.23216161,53865.0,53864.0,0.0952724]
[1725674919302,0.1864828,53865.0,53864.0,0.0952724]
[1725674919906,0.093847,53865.0,53864.0,0.0952724]
[1725674920107,0.1864828,53865.0,53864.0,0.0952724]
[1725674920995,0.001,53865.0,53864.0,0.16956529]
[1725674921194,0.0926358,53870.0,53864.0,1.02946412]
[1725674921398,0.0926358,53871.0,53870.0,0.092839]
[1725674921595,0.0926358,53872.0,53871.0,0.092837]
[1725674922006,0.03768753,53872.0,53871.0,0.16712334]
[1725674922306,0.03768753,53872.0,53871.0,0.092837]
[1725674923201,0.03868753,53872.0,53871.0,0.14950979]
[1725674923698,0.03868753,53872.0,53871.0,0.093837]
[1725674924008,0.03868753,53872.0,53871.0,0.14950979]
[1725674924208,0.03868753,53872.0,53871.0,0.093837]
[1725674924707,0.03868753,53872.0,53871.0,0.18020616]
[1725674925212,0.03868753,53872.0,53871.0,0.12453337]
[1725674927108,0.07454616,53872.0,53871.0,0.12453337]
[1725674927710,0.1769857,53872.0,53871.0,0.12453337]
[1725674929011,0.13929817,53872.0,53871.0,0.12453337]
[1725674930106,0.32432741,53872.0,53871.0,0.12453337]
[1725674930509,0.13929817,53872.0,53871.0,0.12453337]
[1725674933014,0.16750142,53872.0,53871.0,0.12453337]
[1725674933209,0.39863459,53872.0,53871.0,0.12453337]
[1725674933515,0.23213317,53872.0,53871.0,0.12453337]
[1725674933816,0.33213317,53872.0,53871.0,0.001]
[1725674934006,0.42943317,53872.0,53871.0,0.001]
[1725674934206,0.38362645,53872.0,53871.0,0.001]
[1725674934405,0.39075279,53872.0,53871.0,0.001]
[1725674934612,0.42228375,53872.0,53871.0,0.001]
[1725674934817,0.51511875,53872.0,53871.0,0.001]
[1725674935115,0.092856,53860.0,53859.0,0.05562966]
[1725674935321,0.092856,53860.0,53856.0,0.14849166]
[1725674935322,0.1,53860.0,53856.0,0.14849166]
[1725674936317,0.193856,53860.0,53859.0,0.001]
[1725674937112,0.23281578,53860.0,53859.0,0.001]
[1725674937313,0.193856,53860.0,53859.0,0.001]
[1725674938003,0.092859,53859.0,53856.0,0.092862]
[1725674938508,0.09286,53858.0,53856.0,0.092862]
[1725674938708,0.092865,53855.0,53854.0,0.05560621]
[1725674938908,0.092868,53853.0,53850.0,0.05560621]
[1725674939115,0.092882,53846.0,53842.0,0.14849221]
[1725674939316,0.192882,53846.0,53842.0,0.092886]
[1725674939727,0.1,53846.0,53841.0,0.05560621]
[1725674940020,0.0957,53852.0,53838.0,0.07428634]
[1725674940021,0.1,53843.0,53838.0,0.14850021]
[1725674940315,0.1,53840.0,53838.0,0.092894]
[1725674940717,0.1,53840.0,53838.0,0.03157452]
[1725674940923,0.1,53840.0,53837.0,0.05560621]
[1725674940924,0.092892,53839.0,53837.0,0.05560621]
[1725674941120,0.092892,53839.0,53836.0,0.15560621]
[1725674941416,0.082892,53839.0,53836.0,0.192897]
[1725674941813,0.082892,53839.0,53838.0,0.014]
[1725674942414,0.082892,53839.0,53837.0,0.092896]
[1725674942818,0.092874,53850.0,53838.0,0.1]
[1725674943119,0.092874,53850.0,53836.0,0.04544654]
[1725674943120,0.1384533,53849.0,53843.0,0.1]
[1725674943329,0.1,53849.0,53843.0,0.1]
[1725674944619,0.1957,53852.0,53843.0,0.1]
[1725674944821,0.0957,53852.0,53849.0,0.1]
[1725674945416,0.0957,53852.0,53848.0,0.092876]
[1725674945723,0.0957,53852.0,53850.0,0.092873]
[1725674945919,0.0967,53852.0,53850.0,0.092873]
[1725674946926,0.18957,53852.0,53850.0,0.092873]
[1725674947523,0.18857,53852.0,53850.0,0.092873]
[1725674948123,0.13997,53852.0,53850.0,0.092873]
[1725674952830,0.0471,53852.0,53847.0,0.092878]
[1725674953030,0.092873,53850.0,53848.0,0.092876]
[1725674953933,0.092873,53850.0,53849.0,0.092875]
[1725674954228,0.1,53851.0,53850.0,0.092873]
[1725674955430,0.101,53851.0,53850.0,0.092873]
[1725674956232,0.093871,53851.0,53850.0,0.092873]
[1725674957535,0.092879,53847.0,53846.0,0.092879]
[1725674959036,0.092879,53847.0,53846.0,0.096879]
[1725674961239,0.092872,53851.0,53846.0,0.104]
[1725674962134,0.092872,53851.0,53846.0,0.20640621]
[1725674962527,0.092872,53851.0,53846.0,0.20240621]
[1725674962729,0.092872,53851.0,53846.0,0.1508]
[1725674962934,0.092872,53851.0,53850.0,0.092873]
[1725674963331,0.092867,53854.0,53851.0,0.09287]
[1725674965231,0.092867,53854.0,53852.0,0.09287]
[1725674965435,0.094867,53854.0,53852.0,0.09287]
[1725674966543,0.095867,53854.0,53853.0,0.092868]
[1725674968735,0.097867,53854.0,53853.0,0.092868]
[1725674971238,0.23621666,53854.0,53853.0,0.092868]
[1725674971839,0.23621274,53854.0,53853.0,0.092868]
[1725674972449,0.42124198,53854.0,53853.0,0.092868]
[1725674972843,0.23621274,53854.0,53853.0,0.092868]
[1725674973350,0.14334574,53854.0,53853.0,0.092868]
[1725674974651,0.14334574,53854.0,53853.0,0.12441312]
[1725674976445,0.17979571,53854.0,53853.0,0.12441312]
[1725674976752,0.26228426,53854.0,53853.0,0.12441312]
[1725674976943,0.32830907,53854.0,53853.0,0.12441312]
[1725674977348,0.36485915,53854.0,53853.0,0.12441312]
[1725674978043,0.17989582,53854.0,53853.0,0.12441312]
[1725674978241,0.17989582,53854.0,53853.0,0.22441312]
[1725674979243,0.04155008,53854.0,53853.0,0.22441312]
[1725674980143,0.04155008,53854.0,53853.0,0.12441312]
[1725674980338,0.13441608,53854.0,53853.0,0.18009074]
[1725674980755,0.13441608,53854.0,53853.0,0.12441312]
[1725674982347,0.097866,53854.0,53853.0,0.12441312]
[1725674986255,0.13373786,53854.0,53853.0,0.12441312]
[1725674987053,0.04087179,53854.0,53853.0,0.22441312]
[1725674987558,0.005,53854.0,53853.0,0.22441312]
[1725674988648,0.11599478,53854.0,53853.0,0.22441312]
[1725674994358,0.005,53854.0,53853.0,0.22441312]
[1725674996759,0.18278065,53865.0,53853.0,0.92284227]
[1725674996961,0.183147,53865.0,53864.0,0.192849]
[1725674997165,0.09285,53864.0,53862.0,0.15565993]
[1725674997354,0.09285,53864.0,53862.0,0.192852]
[1725674997962,0.09285,53864.0,53862.0,0.24851193]
[1725674998166,0.09285,53864.0,53863.0,0.092851]
[1725674999864,0.09985,53864.0,53863.0,0.093851]
[1725675001358,0.18118119,53864.0,53863.0,0.093851]
[1725675001962,0.4046219,53864.0,53863.0,0.093851]
[1725675002466,0.23817135,53864.0,53863.0,0.093851]
[1725675002762,0.08833119,53864.0,53863.0,0.093851]
[1725675003061,0.08833119,53864.0,53863.0,0.141051]
[1725675003255,0.04286446,53864.0,53863.0,0.1722435]
[1725675003455,0.17224041,53864.0,53863.0,0.1722435]